[Event "European Amateur Chess-ch 2022"]
[Site "Zagreb"]
[Date "2022.08.21"]
[Round "9.10"]
[White "Buchcar, Tomas"]
[Black "Faukovic, Matija"]
[Result "1-0"]
[ECO "A09"]
[WhiteElo "2208"]
[BlackElo "2026"]
[Annotator "TA"]
[PlyCount "81"]
[EventDate "2022.08.14"]
[EventCountry "CRO"]
[SourceTitle "playchess.com"]
[Source "ChessBase"]
[SourceQuality "1"]
[TimeControl "40/5400+30:1800+30"]

{[%evp 9,81,-22,-16,-38,-29,-32,-45,-57,-51,-70,-44,-60,-41,-91,-30,-85,-83,-81,-82,-69,-60,-94,-29,-26,18,6,50,27,43,51,77,79,74,54,52,52,43,47,45,50,47,46,130,56,77,74,86,76,143,106,230,229,224,197,214,206,343,319,341,336,465,476,479,476,455,464,570,564,636,621,1002,951,1895,1723]} 1. Nf3 d5 2. c4 d4 3. g3 Nc6 4. Bg2 e5 5. d3 Bb4+ 6. Nfd2 {A09: Réti Opening: 1 Nf3 d5 2 c4.} a5 7. O-O Nf6 8. Nf3 {Black is slightly better.} O-O 9. Na3 {[#]} Re8 $146 ({Predecessor:} 9... h6 10. Nb5 Bf5 11. Rb1 Re8 12. a3 Bf8 13. b3 Qd7 14. Bb2 Rad8 15. Rc1 b6 {½-½ (22) Mogranzini,R (2486)-Brunello,S (2542) Chianciano Terme 2018}) 10. Nc2 Bf8 11. h3 ({White should try} 11. b3 $15) 11... Rb8 (11... h6 $17) 12. e4 (12. b3 $11 {keeps the balance.}) 12... b5 $17 13. cxb5 Rxb5 14. Nd2 Ba6 15. Nc4 Rc5 (15... Nd7 $17) 16. b3 Na7 {[%cal Bc6a7,Ba7b5,Bb5d6,Bd6b7,Bb7c5][%mdl 32]} 17. Qd2 Nb5 {[%cal Oa5a4]} 18. a4 Nd6 19. Ba3 Bxc4 20. bxc4 Rc6 21. Qxa5 {[%cal Oc2d4]} Nb7 22. Qd2 Bxa3 23. Rxa3 Ra6 24. Rb1 {[%cal Bf1b1,Bb1b5,Bb5d5][%mdl 32]} Nc5 25. a5 Qa8 {[#]} ({Better is} 25... Qd6 $14) 26. Bf1 (26. Nxd4 $1 $16 {[%mdl 512] aiming for Nc2.} exd4 27. e5) 26... Nfd7 27. Be2 g6 28. Bg4 Rb8 (28... Ra7 $142) 29. Rb5 Rd6 {Loses the game.} (29... Ra7 $16) 30. Bxd7 Nxd7 31. Qb4 {[%cal Oa5a6] And now a6! would win.} Rf8 32. Rd5 c5 (32... Rb8 {might work better.} 33. Rb5 (33. Rxd6 $2 Rxb4 34. Rxd7 Rb1+ 35. Kg2 f5 $19) 33... Rc8) 33. Qa4 Qa6 34. Qb5 Qxb5 35. cxb5 {White is clearly winning.} Rxd5 36. exd5 $18 {KRN-KRN} Ra8 37. a6 Ra7 38. Ra5 Nb6 39. Na3 {Threatens to win with d6.} e4 40. Nc4 Nxd5 41. dxe4 {Weighted Error Value: White=0.13 (very precise) /Black=0.35} 1-0

[Event "European Amateur Chess-ch 2022"]
[Site "Zagreb"]
[Date "2022.08.21"]
[Round "9.11"]
[White "Denic, Marin"]
[Black "Maravic, Ivan"]
[Result "1/2-1/2"]
[ECO "C55"]
[WhiteElo "2190"]
[BlackElo "2009"]
[Annotator "TA"]
[PlyCount "62"]
[EventDate "2022.08.14"]
[EventCountry "CRO"]
[SourceTitle "playchess.com"]
[Source "ChessBase"]
[SourceQuality "1"]
[TimeControl "40/5400+30:1800+30"]

{[%evp 11,62,13,16,13,19,17,24,18,21,12,16,12,13,14,16,8,16,0,7,6,10,0,0,-9,0,-16,12,13,66,58,56,49,51,51,112,59,62,57,63,64,66,58,75,68,68,0,7,0,28,18,29,32,30]} 1. e4 e5 2. Nf3 Nc6 3. Bc4 Nf6 4. d3 Be7 5. O-O O-O 6. Nc3 d6 7. a4 $1 {[%mdl 4] 7.a4 is setting a new trend. C55: Two Knights: 4 d3, 4 d4 exd4 5 e5 and Max Lange Attack.} Na5 8. Ba2 c5 9. Bg5 {White has an edge.} Nc6 10. Bxf6 Bxf6 11. Nd5 Be6 {[#]} 12. c3 $146 ({Predecessor:} 12. Qd2 Rb8 13. c3 h6 14. b4 cxb4 15. cxb4 Bg5 16. Nxg5 Qxg5 17. f4 exf4 18. Rxf4 {0-1 (41) Ciocani,I (1954)-Secheres,A (2360) Arad 2022}) 12... g6 13. Nd2 {[%cal Bf3d2,Bd2f1,Bf1e3,Be3d5][%mdl 32]} Bg7 14. Qc2 Qd7 15. Rfe1 Rad8 16. Nf1 Kh8 17. Nfe3 f6 18. b4 cxb4 19. Nxb4 {[%cal Oa4a5]} Ne7 (19... f5 $11) 20. Bxe6 $14 Qxe6 21. Ned5 Nc6 22. a5 a6 (22... f5 $14) 23. Reb1 (23. Nxc6 $16 bxc6 24. Nb4) 23... Na7 24. Qb2 {Strongly threatening Nc7.} Rf7 {Prevents Nc7.} 25. Nc2 {Pair of Knights!} Nc6 26. Qb6 Rdd7 27. Ra4 f5 28. Rc4 {0x0.002361137d02dp-1022s more active pieces.} ({Better is} 28. Ncb4 $14 Nd8 29. Ra2) 28... Bf6 29. Nxf6 Rxf6 30. Nb4 {Inhibits d5.} Nxb4 31. Rcxb4 Rff7 {Weighted Error Value: White=0.10 (very precise) /Black=0.11 (very precise)} 1/2-1/2

[Event "European Amateur Chess-ch 2022"]
[Site "Zagreb"]
[Date "2022.08.21"]
[Round "9.12"]
[White "Jonsson, Gauti Pall"]
[Black "Vanden Bussche, Steven"]
[Result "0-1"]
[ECO "D94"]
[WhiteElo "2071"]
[BlackElo "2026"]
[Annotator "TA"]
[PlyCount "60"]
[EventDate "2022.08.14"]
[EventCountry "CRO"]
[SourceTitle "playchess.com"]
[Source "ChessBase"]
[SourceQuality "1"]
[TimeControl "40/5400+30:1800+30"]

{[%evp 15,60,7,10,0,17,-8,0,-10,-11,-23,-15,-40,-21,-38,-32,-31,-29,-32,-50,-54,-49,-57,-50,-55,-49,-33,-16,-98,-94,-79,-48,-219,-68,-58,0,0,0,-35,-53,-102,-94,-245,-235,-246,-244,-718,-720]} 1. Nf3 c6 2. c4 d5 3. e3 Nf6 4. Nc3 g6 5. d4 Bg7 6. cxd5 cxd5 7. Be2 Nc6 8. O-O O-O {[#]} 9. Na4 $146 {D94: Grünfeld: 4 Nf3 Bg7 5 e3.} ({Predecessor:} 9. b3 Ne4 10. Bb2 Nxc3 11. Bxc3 Qd6 12. Qd2 Bg4 13. b4 Bxf3 14. Bxf3 e6 15. b5 Ne7 16. Bb4 Qd7 {½-½ (29) Moroni,L (2575)-Topalov,V (2730) Cap d'Agde 2021}) 9... Ne4 10. Bd2 Qd6 11. Rc1 {The position is equal.} b6 12. Bb5 Bb7 13. Qe2 Rfc8 14. a3 Nxd2 15. Qxd2 Na5 16. Rxc8+ Rxc8 17. Nc3 Nc4 18. Bxc4 dxc4 19. e4 Qd7 20. Qe3 b5 21. Rd1 {[#]} (21. d5 $11) 21... a5 $1 $17 22. Ne5 Qe8 (22... Qd8 $5 {[%cal Rb5b4]} 23. f4 b4 $17) 23. Nd5 $2 {Against b4} ({White should try} 23. Rc1 $15) 23... Bxd5 $2 ({Better is} 23... e6 $19 24. Nf4 b4 25. axb4 axb4) 24. exd5 $15 Rd8 (24... Bf6 $15) 25. Nc6 $11 Rd7 {[%cal Bd8d7,Bd7d6,Bd6f6][%mdl 32]} 26. Re1 {[%cal Rc6e7]} (26. b3 $5 {[%cal Rb3c4]}) 26... Bf6 27. Qf3 (27. Qe4 $15 {should be considered.}) 27... Rd6 $17 28. Nxa5 $2 (28. b3 $17) 28... Qd7 $19 29. b3 Bxd4 {[#] White must now prevent ...Rf6.} ({But not} 29... Rxd5 $2 30. bxc4 Rf5 31. Qd3 (31. Qa8+ $2 Kg7 $19)) 30. bxc4 $2 ({Avoid the trap} 30. Nc6 $2 Rf6 31. Nxd4 Rxf3 32. gxf3 Qxd5 33. bxc4 Qxd4 $19) (30. Rf1) 30... Rf6 {[%mdl 64] Skewer, Deflection.  Weighted Error Value: White=0.60/Black=0.13 (very precise)} 0-1

[Event "European Amateur Chess-ch 2022"]
[Site "Zagreb"]
[Date "2022.08.21"]
[Round "9.13"]
[White "Basaric, Srdjan"]
[Black "Dzaja, Martin Zorislav"]
[Result "1-0"]
[ECO "D01"]
[WhiteElo "2024"]
[BlackElo "1974"]
[Annotator "NA RC"]
[PlyCount "77"]
[EventDate "2022.08.14"]
[EventCountry "CRO"]
[SourceTitle "playchess.com"]
[Source "ChessBase"]
[SourceQuality "1"]
[TimeControl "40/5400+30:1800+30"]

1. d4 d5 2. Nc3 Nf6 3. Bg5 Nbd7 4. Nf3 h6 5. Bh4 c6 6. e3 g5 7. Bg3 Nh5 8. Bd3 Nxg3 9. hxg3 Bg7 10. Qe2 e5 11. Bf5 e4 12. Nd2 Nf6 13. Bxc8 Qxc8 14. f3 Qe6 15. O-O-O O-O 16. f4 gxf4 17. gxf4 Ng4 18. Rdf1 f5 19. Nd1 Rf6 20. Nf2 Rg6 21. Nxg4 Rxg4 22. Rh2 Qg6 23. Rfh1 b6 24. Nf1 c5 25. c3 c4 26. g3 b5 27. Rh4 Rxh4 28. Rxh4 a5 29. g4 fxg4 30. Rxg4 Qb6 31. Qg2 Qb7 32. Ng3 Qf7 33. f5 Ra7 34. Rg6 b4 35. Nh5 Qf8 36. f6 bxc3 37. fxg7 cxb2+ 38. Kb1 Rxg7 39. Nxg7 1-0

[Event "European Amateur Chess-ch 2022"]
[Site "Zagreb"]
[Date "2022.08.21"]
[Round "9.14"]
[White "Baric, Marko"]
[Black "Kanizaj, Benjamin"]
[Result "1-0"]
[ECO "B52"]
[WhiteElo "1948"]
[BlackElo "2050"]
[Annotator "NA RC"]
[PlyCount "77"]
[EventDate "2022.08.14"]
[EventCountry "CRO"]
[SourceTitle "playchess.com"]
[Source "ChessBase"]
[SourceQuality "1"]
[TimeControl "40/5400+30:1800+30"]

1. e4 c5 2. Nf3 d6 3. Bb5+ Bd7 4. Bxd7+ Qxd7 5. O-O Nf6 6. Qe2 Nc6 7. Rd1 e6 8. d4 cxd4 9. Nxd4 Be7 10. c4 O-O 11. Nc3 a6 {has lost popularity (11...Rac8).} 12. b3 Rfd8 13. Nxc6 Qxc6 14. Bb2 Rac8 {[#]} 15. Rd4 $146 ({Predecessor:} 15. f4 Nd7 16. Rd2 Bf6 17. Rad1 Nc5 18. e5 dxe5 19. fxe5 Rxd2 20. Rxd2 Be7 21. Kh1 {0-1 (32) Dostal,S (1753)-Desmarais,S ICCF email 2015}) 15... Ne8 16. a4 Bf6 17. Rd3 Qb6 18. Qc2 Qc6 19. Rad1 Bxc3 20. Rxc3 Nf6 21. f3 Nd7 22. Kh1 a5 23. Qd2 Nc5 24. Ba3 Qb6 25. Bxc5 Qxc5 26. Rd3 Rc6 27. h3 h6 28. f4 f6 29. f5 Qe5 30. fxe6 Qxe6 31. Qxa5 Re8 32. Qd5 Kf8 33. Kg1 $16 Qe7 34. Qf5 Qf7 35. Rxd6 g6 36. Qf4 Re5 37. Qxh6+ Kg8 38. Rd8+ Re8 39. R1d7 1-0

[Event "European Amateur Chess-ch 2022"]
[Site "Zagreb"]
[Date "2022.08.21"]
[Round "9.15"]
[White "Prihoda, Leonardo"]
[Black "Colev, Ivor"]
[Result "1-0"]
[ECO "A83"]
[WhiteElo "1995"]
[BlackElo "1950"]
[Annotator "TA"]
[PlyCount "59"]
[EventDate "2022.08.14"]
[EventCountry "CRO"]
[SourceTitle "playchess.com"]
[Source "ChessBase"]
[SourceQuality "1"]
[TimeControl "40/5400+30:1800+30"]

{[%evp 10,59,15,0,28,0,0,10,48,39,37,-10,-10,-10,-27,-48,-35,-42,30,37,33,14,45,35,585,574,29987,6399,29991,29988,2041,111,174,177,168,116,189,186,258,261,245,84,753,754,739,711,1093,1093,1037,1019,6299,2519]} 1. d4 {[%cal Bd2d4,Bd4d5][%mdl 32]} f5 2. e4 fxe4 3. Nc3 Nf6 4. Bg5 Nc6 5. d5 Ne5 6. Qe2 c6 {A83: Dutch Defence: Staunton Gambit with 3 Nc3 Nf6 4 Bg5.} (6... Nf7 $5 {[%cal Rf7g5]} 7. Bxf6 exf6 $11) 7. Bxf6 (7. f4 $5 {[%cal Rf4e5]} Nf7 8. Bxf6 gxf6 9. Qxe4 $11) 7... gxf6 8. O-O-O Bh6+ {The position is equal.} 9. Kb1 O-O {[#]} 10. Qh5 $146 (10. Qxe4 $14 {is superior.} cxd5 11. Qh4) ({Predecessor:} 10. Qxe4 Qb6 11. f4 Ng6 12. Bc4 Kh8 13. Nge2 f5 14. Qf3 cxd5 15. Nxd5 Qc5 16. Bb3 {1-0 (31) Rios,C (2445)-Linares Napoles,O (2241) Havana 2018}) 10... Bg7 $11 {next ...f5 is good for Black.} 11. f4 exf3 12. Nxf3 Qe8 13. Qh4 {Strongly threatening Nxe5.} Nxf3 (13... d6 $15) 14. gxf3 f5 ({Not} 14... Qg6 15. dxc6 dxc6 16. Rg1 $1 $16) 15. Rg1 {Threatens to win with Bc4.} Kh8 16. Bc4 {[%cal Og1g7] Rxg7! is the strong threat.} Bxc3 {[%mdl 8192]} (16... b5 $14 17. Bb3 (17. Rxg7 Kxg7 18. dxc6 bxc4 $11) 17... Bb7) 17. bxc3 $18 {Rde1 would kill now.} cxd5 18. Bxd5 (18. Rde1 $142 e5 19. Qh6 $1 Rf7 20. Bxd5 b6 21. Bxf7 Qxf7 22. Qd6 Qg7 23. Rxg7 Kxg7 24. Qe7+ Kh6 25. Rg1 Kh5 26. Qxh7#) 18... e6 19. Rde1 Qf7 {[#]} 20. Qh6 $2 (20. Rg5 $1 $18 {[%cal Oe1g1] and the rest is easy. Intending Reg1! and mate.} d6 (20... f4 21. Be4) 21. Reg1 $1) 20... Qf6 {[#]} (20... exd5 {is a self mate.} 21. Qd6) (20... Rg8 $16) 21. Rg6 $3 $40 {[%mdl 640] White attacks with force.} Qxg6 22. Qxf8+ Qg8 23. Qc5 {Hoping for Rg1.} h6 (23... Qg7 $142 24. f4 Qf6) 24. Rg1 $1 Qf7 {[#]} 25. h4 $2 exd5 {[%mdl 8192] [#]} (25... Kh7 $16) 26. Qd6 $1 {White is clearly winning.} Kh7 {[#]} 27. Re1 $1 Qe6 28. Rxe6 dxe6 29. h5 b5 30. Qc6 {[%csl LRa8,LRb5] Weighted Error Value: White=0.43/Black=1.24} 1-0

[Event "European Amateur Chess-ch 2022"]
[Site "Zagreb"]
[Date "2022.08.21"]
[Round "9.16"]
[White "Jakovic, Roko"]
[Black "Jakupec, Denis"]
[Result "1-0"]
[ECO "E71"]
[WhiteElo "1921"]
[BlackElo "2004"]
[Annotator "NA RC"]
[PlyCount "47"]
[EventDate "2022.08.14"]
[EventCountry "CRO"]
[SourceTitle "playchess.com"]
[Source "ChessBase"]
[SourceQuality "1"]
[TimeControl "40/5400+30:1800+30"]

{[%evp 12,38,38,23,53,32767,-19,32767,-27,-29,-21,-79,0,-47,32767,-170,173,95,100,153,158,32767,32767,32767,32767,32767,338,224,223]} 1. d4 Nf6 2. c4 g6 3. Nc3 Bg7 4. e4 d6 5. h3 O-O 6. Be3 Na6 7. g4 c5 8. d5 e6 9. Qd2 exd5 10. cxd5 Nc7 11. f3 (11. a4 $11 {remains equal.}) 11... Re8 12. Bd3 (12. a4 $11) 12... Nfxd5 13. exd5 $2 (13. Nxd5 $11 {and White stays safe.} Nxd5 14. exd5) 13... Bd4 $4 (13... Bxc3 $19 {avoids the disaster.} 14. bxc3 Nxd5) 14. Be4 ({White should try} 14. Ne4 $18) 14... Bxe3 15. Qxe3 f5 16. gxf5 gxf5 17. O-O-O fxe4 18. fxe4 Bd7 19. Qg3+ $18 (19. Nf3 $142) 19... Kh8 20. Qxd6 Nb5 21. Nxb5 Bxb5 22. Qf4 Qe7 23. Nf3 Qxe4 24. Qf6+ 1-0

[Event "European Amateur Chess-ch 2022"]
[Site "Zagreb"]
[Date "2022.08.21"]
[Round "9.17"]
[White "Vukic, Aleksandar"]
[Black "Raljic, Mirko"]
[Result "1/2-1/2"]
[WhiteElo "2073"]
[BlackElo "2023"]
[Annotator "TA"]
[PlyCount "38"]
[EventDate "2022.08.14"]
[EventCountry "CRO"]
[SourceTitle "playchess.com"]
[Source "ChessBase"]
[SourceQuality "1"]
[TimeControl "40/5400+30:1800+30"]

{[%evp 13,14,24,14]} 1. d4 d5 2. c4 c6 3. e3 Nf6 4. Nc3 e6 5. Nf3 Be7 6. Bd3 Nbd7 7. O-O O-O {[#]} {Predecessor:} 8. e4 $146 {D46: Semi-Slav: 5 e3 Nbd7 6 Bd3, Black avoids the Meran.} dxe4 9. Nxe4 Nxe4 10. Bxe4 Nf6 11. Bc2 b6 12. Bg5 Bb7 13. Qd3 g6 14. Qc3 Rc8 15. Rad1 Qc7 16. d5 Ne8 17. Bxe7 Qxe7 18. dxe6 Qxe6 19. c5 Qf6 {1-0 (29) Nakamura,H (2736)-Fedoseev,V (2678) Chess.com INT 2020} 1/2-1/2

[Event "European Amateur Chess-ch 2022"]
[Site "Zagreb"]
[Date "2022.08.21"]
[Round "9.18"]
[White "Frouth, Nenad"]
[Black "Pal, Rohan"]
[Result "1/2-1/2"]
[ECO "B23"]
[WhiteElo "2121"]
[BlackElo "1935"]
[Annotator "TA"]
[PlyCount "40"]
[EventDate "2022.08.14"]
[EventCountry "CRO"]
[SourceTitle "playchess.com"]
[Source "ChessBase"]
[SourceQuality "1"]
[TimeControl "40/5400+30:1800+30"]

{[%evp 9,40,0,7,0,0,0,33,47,33,0,0,0,0,-4,0,0,0,-1,6,0,0,-11,12,8,31,31,31,31,29,36,21,20,33]} 1. e4 c5 2. Nc3 Nc6 3. Bb5 Nd4 4. Bc4 Nf6 5. Nge2 e6 {[%cal Ob7b5]} 6. O-O {B23: Closed Sicilian: Lines without g3.} a6 7. a4 {Prevents b5.} Nxe4 8. Nxe4 {White is slightly better.} d5 9. Bd3 {[%cal Bc4d3,Bd3e4,Be4g2][%mdl 32] Threatens to win with N4g3.} dxe4 10. Bxe4 Bd6 {[%cal Od6h2] [#]} 11. g3 $146 ({Predecessor:} 11. Nxd4 cxd4 12. Qh5 g6 13. Qe2 Qc7 14. Kh1 O-O 15. c3 Be5 16. a5 Bd7 17. c4 {0-1 (44) Hernandez Guerrero,G (2536)-Izoria,Z (2645) Miami 2007}) 11... O-O 12. c3 Nxe2+ 13. Qxe2 Qe7 14. Bg2 e5 15. d3 Re8 16. f4 exf4 17. Qxe7 Rxe7 18. Bxf4 Bxf4 19. Rxf4 Be6 20. d4 cxd4 {Weighted Error Value: White=0.05 (flawless) /Black=0.07 (flawless)} 1/2-1/2

[Event "European Amateur Chess-ch 2022"]
[Site "Zagreb"]
[Date "2022.08.21"]
[Round "9.19"]
[White "Takac, Zvonko"]
[Black "Starcevic, Danijel"]
[Result "0-1"]
[ECO "E91"]
[WhiteElo "2040"]
[BlackElo "1935"]
[Annotator "TA"]
[PlyCount "84"]
[EventDate "2022.08.14"]
[EventCountry "CRO"]
[SourceTitle "playchess.com"]
[Source "ChessBase"]
[SourceQuality "1"]
[TimeControl "40/5400+30:1800+30"]

{[%evp 11,84,29,47,21,35,13,17,27,22,0,0,0,0,-12,-14,-96,-30,-76,-80,-111,-91,-91,-71,-130,-87,-89,-94,-93,-95,-93,-89,-112,-111,-116,-110,-100,-100,-112,-115,-145,-131,-143,-147,-179,-95,-94,-95,-120,-120,-157,-156,-157,-150,-157,-182,-184,-188,-353,-310,-517,-536,-629,-621,-607,-607,-607,-607,-600,-502,-682,-665,-671,-670,-611,-535]} 1. d4 Nf6 2. Nf3 g6 3. c4 Bg7 4. Nc3 O-O 5. e4 d6 6. Be2 Na6 {[%cal Oe7e5]} 7. a3 {E91: King's Indian: Classical: 6 Be2, unusual replies including 6...c5 and 6...Bg4.} e5 8. d5 Nc5 9. Qc2 {The position is equal.} a5 10. Be3 b6 11. h3 Nh5 12. O-O f5 {[#]} 13. Ne1 $146 (13. Rfe1) (13. Rfe1 $11 {remains equal.}) ({Predecessor:} 13. b4 Nxe4 14. Nxe4 fxe4 15. Nd2 Nf4 16. Nxe4 Bf5 17. Bg4 Qh4 18. g3 Nxh3+ 19. Kh2 Qxg4 20. f3 Bxe4 21. Qxe4 Qh5 22. g4 Qh4 23. Rh1 Nf4+ 24. Kg1 Qg3+ {0-1 (24) Kienel,N (1837)-Paus,F (2145) Buesum 2017}) 13... Nf6 (13... Nxe4 $17 14. Nxe4 fxe4 15. Bxh5 gxh5 16. Qxe4 Bf5) 14. f3 (14. exf5 $11 Bxf5 15. Nd3) 14... Nh5 $17 15. Kh2 {Inhibits Ng3.} f4 16. Bf2 a4 17. Rg1 (17. Nd3 $142) 17... Bh6 {[%cal Bg7h6,Bh6g5,Bg5h4][%mdl 32]} 18. Bf1 Nb3 19. Rd1 {[%cal Oc3a4]} Bd7 20. Nd3 Bg5 21. Ne2 Bh4 22. Qc3 Qg5 {And now ...Bg3+ would win.} 23. Qe1 Bxf2 {Black is much more active.} 24. Qxf2 Qh6 25. Qe1 g5 26. Nf2 Kh8 ({And not} 26... Ng3 27. Nxg3 fxg3+ 28. Kxg3 $15) 27. Rh1 Rf7 (27... Ng3 $19 28. Rg1 g4 29. fxg4 Rg8) 28. Kg1 Ng3 29. Nxg3 fxg3 30. Ng4 Qh4 31. Be2 {[#]} h5 $1 32. Ne3 Qf4 33. Rd3 Nd4 34. Nf1 $2 (34. Qd2) 34... b5 $19 {[%cal Bb6b5,Bb5c4][%mdl 32]} 35. Nxg3 $2 {[#]} (35. Rxd4 exd4 36. cxb5) 35... Qxg3 $3 {[%mdl 576] Remove Defender. Black is clearly winning.} 36. Qxg3 (36. Qf2 bxc4) 36... Nxe2+ 37. Kf2 Nxg3 38. Kxg3 bxc4 39. Rc3 Bb5 40. h4 Kg7 41. hxg5 Kg6 42. Kf2 Kxg5 {Weighted Error Value: White=0.29 (precise) /Black=0.08 (flawless)} 0-1